Workbook

Sheet Macros
G3: Bienvenue dans le logiciel de simulation
G4: de coût d'installation de câble EDR développé par Prysmian Group
G6: Afin de faire fonctionner ce logiciel
G7: Merci d'activer les macros de ce fichier

Sheet PDF_sheet
A5: ="Simulation de coûts câble EDR vs standard - Prysmian Group " & "- " & DAY(TODAY()) & "/"& TEXT(MONTH(TODAY()),"00") & "/" & YEAR(TODAY()) & " - Page 1/2" -> Simulation de coûts câble EDR vs standard - Prysmian Group - 24/01/2019 - Page 1/2 | H5: ="Simulation de coûts câble EDR vs standard - Prysmian Group " & "- " & DAY(TODAY()) & "/"& TEXT(MONTH(TODAY()),"00") & "/" & YEAR(TODAY()) & " - Page 2/2" -> Simulation de coûts câble EDR vs standard - Prysmian Group - 24/01/2019 - Page 2/2
A7: Données VRD | E7: Données engin | H7: Résultats simulation | I7: câble standard | M7: câble EDR
A8: Longueur de liaison | B8: =Donnees_VRD!C3 -> 0 | C8: mètres | E8: Prix utilisation tractopelle | F8: =Donnees_engin!C4 -> 0 | G8: €/jour | H8: Longueur de la liaison | I8: =Resultats_simulation!C3 -> 0 | J8: mètres | M8: =Resultats_simulation!H3 -> 0 | N8: mètres
A9: Nombre de câbles | B9: =Donnees_VRD!C6 -> 0 | C9: câble(s) | E9: Forfait Transport tractopelle | F9: =Donnees_engin!C5 -> 0 | G9: € | H9: Nombre de câbles | I9: =B9 -> 0 | M9: =B9 -> 0
E10: Consommation carburant | F10: =calcul_cable!C25 -> 9 | G10: L/h
A11: Largeur tranchée | B11: =Donnees_VRD!C7 -> 0 | C11: mètres | H11: Volume de terre excavée | I11: =Resultats_simulation!C5 ->  | J11: mètres3 | M11: =Resultats_simulation!H5 ->  | N11: mètres3
A12: Profondeur tranchée | B12: =Donnees_VRD!C8 -> 0 | C12: mètres | E12: Prix utilisation trancheuse | F12: =Donnees_engin!C8 -> 0 | G12: €/jour | H12: Volume de terre (déblais) | I12: =Resultats_simulation!C6 ->  | J12: mètres3 | M12: =Resultats_simulation!H6 -> 0 | N12: mètres3
A13: Epaisseur du lit de sable | B13: =Donnees_VRD!C9 -> 0 | C13: mètres | E13: Forfait Transport trancheuse | F13: =Donnees_engin!C9 -> 0 | G13: € | H13: Poids terre (déblais) | I13: =Resultats_simulation!C7 ->  | J13: Tonnes | M13: =Resultats_simulation!H7 -> 0 | N13: Tonnes
A14: Largeur tranchée raccordement | B14: =Donnees_VRD!C11 -> 0 | C14: mètres | E14: Consommation carburant | F14: =calcul_cable!C28 -> 15 | G14: L/h | H14: Nombre de camions pour évacuation | I14: =Resultats_simulation!C8 ->  | J14: camions de | K14: =Resultats_simulation!E8 -> 0 | L14: tonnes | M14: =Resultats_simulation!H8 ->  | N14: camion(s) de | O14: =Resultats_simulation!J8 -> 0 | P14: tonnes
A15: Longueur tranchée raccordement | B15: =Donnees_VRD!C12 -> 0 | C15: mètres | H15: Coût traitement des déchets | I15: =Resultats_simulation!C9 ->  | J15: € | M15: =Resultats_simulation!H9 -> 0 | N15: €
A16: Profondeur tranchée raccordement | B16: =Donnees_VRD!C13 -> 0 | C16: mètres | E16: Nombre de tractopelles utilisées câble standard | F16: =Donnees_engin!C16 -> 0 | H16: Coût évacuation déblais | I16: =Resultats_simulation!C10 ->  | J16: € | M16: =Resultats_simulation!H10 ->  | N16: €
A17: Epaisseur du lit de sable raccordement | B17: =Donnees_VRD!C14 -> 0 | C17: mètres | E17: Nombre de trancheuses utilisées câble standard | F17: =Donnees_engin!C17 -> 0 | H17: Coût grillage avertisseur | I17: =Resultats_simulation!C31 -> 0 | J17: € | M17: =Resultats_simulation!H31 -> 0 | N17: €
E18: Temps de pose câble standard | F18: =Donnees_installation!C9 -> 0 | G18: m/jour | H18: Coût traitement de la terre | I18: =Resultats_simulation!C11 ->  | J18: € | M18: =Resultats_simulation!H11 ->  | N18: €
A19: Densité terre excavée | B19: =Donnees_VRD!C16 -> 0
A20: Densité du sable utilisé | B20: =Donnees_VRD!C17 -> 0 | E20: Nombre de tractopelles utilisées câble EDR | F20: =Donnees_engin!C20 -> 0 | H20: Volume de sable nécessaire pour pose cable | I20: =Resultats_simulation!C13 ->  | J20: mètres3 | M20: =Resultats_simulation!H13 -> 0 | N20: mètres3
E21: Nombre de trancheuses utilisées câble EDR | F21: =Donnees_engin!C21 -> 0 | H21: Poids du sable nécessaire pour pose cable | I21: =Resultats_simulation!C14 ->  | J21: Tonnes | M21: =Resultats_simulation!H14 -> 0 | N21: Tonnes
A22: Distance carrière de sable | B22: =Donnees_VRD!C19 -> 0 | C22: kilomètres | E22: Temps de pose câble EDR | F22: =Donnees_installation!C11 -> 1000 | G22: m/jour | H22: Nombre de boîtes raccordement | I22: =Resultats_simulation!C19 ->  | J22: unités | M22: =Resultats_simulation!H19 ->  | N22: unités
A23: Prix à la tonne de sable | B23: =Donnees_VRD!C22 -> 0 | C23: €/tonne | H23: Volume de sable nécessaire pour raccordement | I23: =Resultats_simulation!C20 ->  | J23: mètres3 | M23: =Resultats_simulation!H20 ->  | N23: mètres3
A24: Distance décharge | B24: =Donnees_VRD!C26 -> 0 | C24: kilomètres | E24: Nombre d'opérateurs pour câble standard | F24: =Donnees_installation!C10 -> 0 | G24: personnes | H24: Poids du sable nécessaire pour raccordement | I24: =Resultats_simulation!C21 ->  | J24: Tonnes | M24: =Resultats_simulation!H21 ->  | N24: Tonnes
A25: Prix traitement déblais | B25: =Donnees_VRD!C34 -> 0 | C25: €/m3 | E25: Nombre d'opérateurs pour câble EDR | F25: =Donnees_installation!F10 -> 3 | G25: personnes | H25: Volume sable total | I25: =Resultats_simulation!C26 ->  | J25: tonnes | M25: =Resultats_simulation!H26 ->  | N25: tonnes
A26: Prix vente déblais | B26: =Donnees_VRD!C35 -> 0 | C26: €/m3 | E26: Coût horaire d'un opérateur | F26: =Donnees_installation!C4 -> 0 | G26: €/heure | H26: Nombre de camions total | I26: =Resultats_simulation!C27 ->  | J26: camions de | K26: =Resultats_simulation!E27 -> 0 | L26: tonnes | M26: =Resultats_simulation!H27 ->  | N26: camion(s) de | O26: =Resultats_simulation!J27 -> 0 | P26: tonnes
A27: Prix du grillage avertisseur | B27: =Donnees_VRD!C37 -> 0.17 | C27: €/m | H27: Montant Achat sable | I27: =Resultats_simulation!C28 ->  | J27: € | M27: =Resultats_simulation!H28 ->  | N27: €
H28: Montant transport sable | I28: =Resultats_simulation!C29 ->  | J28: € | M28: =Resultats_simulation!H29 ->  | N28: €
A29: Type de camions | B29: =Donnees_VRD!C29 -> 0 | C29: tonnes | H29: Montant total sable | I29: =Resultats_simulation!C30 ->  | J29: € | M29: =Resultats_simulation!H30 ->  | N29: €
A30: Consommation essence camion | B30: =calcul_cable!C13 -> 35 | C30: L/100 km | E30: Données installation
A31: Vitesse moyenne camion | B31: =Donnees_VRD!C30 -> 0 | C31: km/h | E31: Type de câbles | G31: =Donnees_installation!C3 -> 3 x 1 x 300 ALU | H31: Coût tractopelle(s) | I31: =Resultats_simulation!C33 ->  | J31: € | M31: =Resultats_simulation!H33 -> 0 | N31: €
A32: Temps de déchargement | B32: =Donnees_VRD!C31 -> 0 | C32: minutes | E32: Type de tension | F32: =Donnees_installation!C8 -> 12/20 kV | H32: Coût trancheuse(s) | I32: =Resultats_simulation!C34 ->  | J32: € | M32: =Resultats_simulation!H34 -> 0 | N32: €
A33: Prix essence au litre | B33: =Donnees_VRD!C32 -> 0 | C33: €/litre | E33: Fournisseur | F33: =Donnees_installation!C5 -> GC | H33: Coût engin tranchée | I33: =Resultats_simulation!C36 ->  | J33: € | M33: =Resultats_simulation!H36 ->  | N33: €
A34: Coût horaire chauffeur | B34: =Donnees_VRD!C33 -> 0 | C34: €/heure | E34: Prix du câble standard | F34: =Donnees_installation!C6 -> 0 | G34: €
E35: Prix du câble EDR | F35: =Donnees_installation!C7 -> 0 | G35: € | H35: Sous total VRD | I35: =Resultats_simulation!C38 ->  | J35: € | M35: =Resultats_simulation!H38 ->  | N35: €
E37: Type de tourets souhaités | F37: =Donnees_installation!C12 -> J | H37: Quantité de câble pour liaison | I37: =Resultats_simulation!C40 -> 0 | J37: mètres | M37: =Resultats_simulation!H40 -> 0 | N37: mètres
E38: Longueur câble standard | F38: =Donnees_installation!C13 -> 800 | G38: mètres | H38: Quantité câble pour raccordement | I38: =Resultats_simulation!C65 ->  | J38: mètres | M38: =Resultats_simulation!H65 ->  | N38: mètres
E39: Longueur câble EDR | F39: =Donnees_installation!C14 -> 600 | G39: mètres | H39: Quantité de câble /touret | I39: =Resultats_simulation!C41 -> 800 | J39: mètres | M39: =Resultats_simulation!H41 -> 600 | N39: mètres
E40: Charge utile | F40: =Donnees_installation!C15 -> 6000 | G40: Kg | H40: Nombre de tourets "type" | I40: =Resultats_simulation!C42 ->  | J40: tourets type | K40: =Resultats_simulation!E42 -> J | M40: =Resultats_simulation!H42 ->  | N40: tourets type | O40: =Resultats_simulation!J42 -> J
E41: Tare touret | F41: =Donnees_installation!C16 -> 850 | G41: Kg | H41: Nombre d'heure de déroulage | I41: =Resultats_simulation!C43 ->  | J41: heures | M41: =Resultats_simulation!H43 -> 0 | N41: heures
E42: Dimensions tourets : Joues | F42: =Donnees_installation!C17 -> 3000 | G42: mm | H42: Coût opérateurs déroulage | I42: =Resultats_simulation!C44 ->  | J42: € | M42: =Resultats_simulation!H44 -> 0 | N42: €
E43: Dimensions tourets : Largeur intérieure | F43: =Donnees_installation!C18 -> 960 | G43: mm | H43: Montant achat câble | I43: =Resultats_simulation!C45 ->  | J43: € | M43: =Resultats_simulation!H45 ->  | N43: €
E44: Dimensions tourets : Fût | F44: =Donnees_installation!C19 -> 1200 | G44: mm | H44: Nombre de boîtes raccordement | I44: =Resultats_simulation!C46 ->  | J44: unités | M44: =Resultats_simulation!H46 ->  | N44: unités
E45: Dimensions tourets : Largeur exterieure | F45: =Donnees_installation!C20 -> 1140 | G45: mm | H45: Coût monteurs | I45: =Resultats_simulation!C69 ->  | J45: € | M45: =Resultats_simulation!H69 ->  | N45: €
H46: Montant total raccordement | I46: =Resultats_simulation!C47 ->  | J46: € | M46: =Resultats_simulation!H47 ->  | N46: €
E47: Prix achat accesoire raccordement | F47: =Donnees_installation!C22 -> 0 | G47: €
E48: Nombre de monteurs | F48: =Donnees_installation!C21 -> 2 | G48: personnes | H48: Total câble et raccordement | I48: =Resultats_simulation!C49 ->  | J48: € | M48: =Resultats_simulation!H49 ->  | N48: €
E49: Coût horaire raccordement | F49: =Donnees_installation!C23 -> 0 | G49: €/heure
E50: Temps raccordement pour une boite | F50: =Donnees_installation!C24 -> 0 | G50: min | H50: Montant total chantier | I50: =Resultats_simulation!C51 ->  | J50: € | M50: =Resultats_simulation!H51 ->  | N50: €
E51: Longueur de garde de câble pour raccordement | F51: =Donnees_installation!C28 -> 1.5 | G51: mètres
H52: Quantité équivalent CO2 Transport Chantier | I52: =Resultats_simulation!C53 ->  | J52: kg éq. CO2 | M52: =Resultats_simulation!H53 ->  | N52: kg éq. CO2
H53: Quantité équivalent CO2 Engins Chantier | I53: =Resultats_simulation!C54 ->  | J53: kg éq. CO2 | M53: =Resultats_simulation!H54 ->  | N53: kg éq. CO2
H54: Quantité équivalent CO2 Transport Prysmian | I54: =Resultats_simulation!C55 ->  | J54: kg éq. CO2 | M54: =Resultats_simulation!H55 ->  | N54: kg éq. CO2
H55: Quantité équivalent CO2 Transport | I55: =Resultats_simulation!C57 ->  | J55: kg éq. CO2 | M55: =Resultats_simulation!H57 ->  | N55: kg éq. CO2
H57: Valeur de gain | M57: =Resultats_simulation!H59 ->  | N57: €
H58: % de gain | M58: =Resultats_simulation!H60 ->  | N58: %
H59: Réduction de l'impact CO2 du transport | M59: =Resultats_simulation!H61 ->  | N59: kg éq. CO2
H60: Réduction de l'impact CO2 du transport | M60: =Resultats_simulation!H62 ->  | N60: %
A62: © PRYSMIAN 2019. Tous droits réservés. Il est interdit de copier, photocopier ou reproduire les informations contenues dans ce document dans quelque forme que ce soit, même en partie sans l’accord écrit préalable de Prysmian. Les informations sont communiquées à titre indicatif, Prysmian se réservant le droit de modifier les caractéristiques du produit sans préavis. © PRYSMIAN 2019. All Rights Reserved. The information contained within this document must not be copied, reprinted or reproduced in any form, either wholly or in part, without the written consent of Prysmian. The information is believed correct at the time of issue. Prysmian reserves the right to amend this specification without notice. This specification is not contractually valid unless specifically authorised by Prysmian. | H62: © PRYSMIAN 2019. Tous droits réservés. Il est interdit de copier, photocopier ou reproduire les informations contenues dans ce document dans quelque forme que ce soit, même en partie sans l’accord écrit préalable de Prysmian. Les informations sont communiquées à titre indicatif, Prysmian se réservant le droit de modifier les caractéristiques du produit sans préavis. © PRYSMIAN 2019. All Rights Reserved. The information contained within this document must not be copied, reprinted or reproduced in any form, either wholly or in part, without the written consent of Prysmian. The information is believed correct at the time of issue. Prysmian reserves the right to amend this specification without notice. This specification is not contractually valid unless specifically authorised by Prysmian.

Sheet Donnees_VRD (hidden)
B2: Saisie des données VRD
B3: Longueur de liaison | D3: mètres
E4: 19
B5: Localisation chantier | E5: 53
B6: Nombre de câble dans tranchée | D6: cables
B7: Largeur tranchée | D7: mètres std | E7: 50 | F7: EDR | G7: 0.4 | H7: mètres
B8: Profondeur tranchée | D8: mètres std | E8: 51 | F8: EDR | G8: 0.9 | H8: mètres
B9: Epaisseur du lit de sable | D9: mètres | E9: 52
B11: Largeur tranchée raccordement | D11: mètres | E11: 57
B12: Longueur tranchée raccordement | D12: mètres | E12: 58
B13: Profondeur tranchée raccordement | D13: mètres std | E13: 56 | F13: EDR | G13: 0.9 | H13: mètres
B14: Epaisseur du lit de sable raccordement | D14: mètres | E14: 59
B16: Densité terre excavée | E16: 7
B17: Densité du sable utilisé | E17: 6
B19: Distance carrière de sable | D19: kilomètres
B20: Localisation carrière | E20: 10
B21: Distance carrière de sable calculée | D21: kilomètres
B22: Prix à la tonne de sable | D22: €/tonne | E22: 9
B23: Prix à la tonne de sable selon cours actuel | D23: €/tonne
E24: 8
B26: Distance décharge | D26: kilomètres
B27: Localisation décharge | E27: 11
B28: Distance décharge calculée | D28: kilomètres
B29: Type de camions pour déblaiement des terres en surplus | D29: Tonnes | E29: 12
B30: Vitesse moyenne camion | D30: km/h | E30: 13
B31: Temps de déchargement | D31: minutes | E31: 14
B32: Prix essence au litre | D32: €/litre | E32: 15
B33: Coût horaire chauffeur | D33: €/heure | E33: 16
B34: Prix traitement déblais | D34: €/m3 | E34: 17
B35: Prix vente déblais | D35: €/m3 | E35: 18
B37: Prix grillage avertisseur | C37: 0.17 | D37: €

Sheet Donnees_engin (hidden)
B2: Saisie des données engin
B3: Tractopelle
B4: Prix utilisation à la journée | D4: €/jour | E4: 22 | F4: 580 | G4: €/jour
B5: Forfait Transport | D5: € | E5: 21
B7: Trancheuse à roue
B8: Prix utilisation à la journée | D8: €/jour | E8: 24
B9: Forfait Transport | D9: € | E9: 23
B11: Trancheuse à chaine
B12: Prix utilisation à la journée | D12: €/jour | E12: 26
B13: Forfait Transport | D13: € | E13: 25
B16: Nombre tractopelle utilisé cable standard | E16: 28
B17: Nombre Trancheuse à roue utilisé cable standard | E17: 27
B18: Nombre Trancheuse à chaine utilisé cable standard | E18: 29
B20: Nombre tractopelle utilisé cable EDR | E20: 32
B21: Nombre Trancheuse à roue utilisé cable EDR | E21: 31
B22: Nombre Trancheuse à chaine utilisé cable EDR | E22: 30

Sheet Donnees_installation (hidden)
B2: Saisie des données installation cable
B3: Type de cables | C3: 3 x 1 x 300 ALU
B4: Coût horaire d'un operateur | D4: €/heure | E4: 35
B5: Fournisseur | C5: GC | H5: GC
B6: Prix du cable standard | D6: € | E6: 33
B7: Prix du cable EDR | D7: € | F7: EDR
B8: Type de voltage | C8: 12/20 kV
B9: Temps de pose standard | D9: m/jour
B10: Nombre d'opérateurs | D10: personnes | F10: 3 | G10: personnes
B11: Temps de pose EDR | C11: 1000 | D11: m/heure | H11: 3 x 1 x 50 ALU
B12: Type de tourets souhaités | C12: J | H12: 3 x 1 x 95 ALU
B13: Longueur cable standard | C13: =E13 -> 800 | D13: mètres | E13: =IF(C8="12/20 kV",(IF(C5="Prysmian",(VLOOKUP(C12,lg_database_prysmian!A32:I34,IF(C3=H11,3,(IF(C3=H12,4,(IF(C3=H13,5,(IF(C3=H14,6,(IF(C3=H15,7,(IF(C3=H16,8,(IF(C3=H17,9,))))))))))))),FALSE)),(VLOOKUP(C12,lg_database_GC!A19:I21,IF(C3=H11,3,(IF(C3=H12,4,(IF(C3=H13,5,(IF(C3=H14,6,(IF(C3=H15,7,(IF(C3=H16,8,(IF(C3=H17,9,))))))))))))),FALSE)))),(IF(C5="Prysmian",(VLOOKUP(C12,lg_database_prysmian!A93:I95,IF(C3=H11,3,(IF(C3=H12,4,(IF(C3=H13,5,(IF(C3=H14,6,(IF(C3=H15,7,(IF(C3=H16,8,(IF(C3=H17,9,))))))))))))),FALSE)),(VLOOKUP(C12,lg_database_GC!A54:I56,IF(C3=H11,3,(IF(C3=H12,4,(IF(C3=H13,5,(IF(C3=H14,6,(IF(C3=H15,7,(IF(C3=H16,8,(IF(C3=H17,9,))))))))))))),FALSE))))) -> 800 | H13: 3 x 1 x 150 ALU
B14: Longueur cable EDR | C14: =E14 -> 600 | D14: mètres | E14: =IF(C8="12/20 kV",(IF(C5="Prysmian",(VLOOKUP(C12,lg_database_prysmian!A7:I9,IF(C3=H11,3,(IF(C3=H12,4,(IF(C3=H13,5,(IF(C3=H14,6,(IF(C3=H15,7,(IF(C3=H16,8,(IF(C3=H17,9,))))))))))))),FALSE)),(VLOOKUP(C12,lg_database_GC!A7:I9,IF(C3=H11,3,(IF(C3=H12,4,(IF(C3=H13,5,(IF(C3=H14,6,(IF(C3=H15,7,(IF(C3=H16,8,(IF(C3=H17,9,))))))))))))),FALSE)))),(IF(C5="Prysmian",(VLOOKUP(C12,lg_database_prysmian!A81:I83,IF(C3=H11,3,(IF(C3=H12,4,(IF(C3=H13,5,(IF(C3=H14,6,(IF(C3=H15,7,(IF(C3=H16,8,(IF(C3=H17,9,))))))))))))),FALSE)),(VLOOKUP(C12,lg_database_GC!A42:I44,IF(C3=H11,3,(IF(C3=H12,4,(IF(C3=H13,5,(IF(C3=H14,6,(IF(C3=H15,7,(IF(C3=H16,8,(IF(C3=H17,9,))))))))))))),FALSE))))) -> 600 | H14: 3 x 1 x 240 ALU
B15: Charge utile | C15: 6000 | D15: Kg | E15: =IF(C8="12/20 kV",(IF(C5="Prysmian",(VLOOKUP(C12,lg_database_prysmian!A56:J58,9,FALSE)),(VLOOKUP(C12,lg_database_GC!A30:J32,9,FALSE)))),(IF(C5="Prysmian",(VLOOKUP(C12,lg_database_prysmian!A103:J105,9,FALSE)),(VLOOKUP(C12,lg_database_GC!A30:J32,9,FALSE))))) -> 6000 | H15: 3 x 1 x 300 ALU
B16: Tare touret | C16: 850 | D16: Kg | E16: =IF(C8="12/20 kV",(IF(C5="Prysmian",(VLOOKUP(C12,lg_database_prysmian!A56:J58,8,FALSE)),(VLOOKUP(C12,lg_database_GC!A30:J32,8,FALSE)))),(IF(C5="Prysmian",(VLOOKUP(C12,lg_database_prysmian!A103:J105,8,FALSE)),(VLOOKUP(C12,lg_database_GC!A30:J32,8,FALSE))))) -> 850 | H16: 3 x 1 x 400 ALU
B17: Dimensions tourets : Joues | C17: 3000 | D17: mm | E17: =IF(C8="12/20 kV",(IF(C5="Prysmian",(VLOOKUP(C12,lg_database_prysmian!A56:J58,3,FALSE)),(VLOOKUP(C12,lg_database_GC!A30:J32,3,FALSE)))),(IF(C5="Prysmian",(VLOOKUP(C12,lg_database_prysmian!A103:J105,3,FALSE)),(VLOOKUP(C12,lg_database_GC!A30:J32,3,FALSE))))) -> 3000 | H17: 3 x 1 x 240 CU
B18: Dimensions tourets : Largeur intérieur | C18: 960 | D18: mm | E18: =IF(C8="12/20 kV",(IF(C5="Prysmian",(VLOOKUP(C12,lg_database_prysmian!A56:J58,4,FALSE)),(VLOOKUP(C12,lg_database_GC!A30:J32,4,FALSE)))),(IF(C5="Prysmian",(VLOOKUP(C12,lg_database_prysmian!A103:J105,4,FALSE)),(VLOOKUP(C12,lg_database_GC!A30:J32,4,FALSE))))) -> 960
B19: Dimensions tourets : Fût | C19: 1200 | D19: mm | E19: =IF(C8="12/20 kV",(IF(C5="Prysmian",(VLOOKUP(C12,lg_database_prysmian!A56:J58,5,FALSE)),(VLOOKUP(C12,lg_database_GC!A30:J32,5,FALSE)))),(IF(C5="Prysmian",(VLOOKUP(C12,lg_database_prysmian!A103:J105,5,FALSE)),(VLOOKUP(C12,lg_database_GC!A30:J32,5,FALSE))))) -> 1200
B20: Dimensions tourets : Largeur exterieur | C20: 1140 | D20: mm | E20: =IF(C8="12/20 kV",(IF(C5="Prysmian",(VLOOKUP(C12,lg_database_prysmian!A56:J58,6,FALSE)),(VLOOKUP(C12,lg_database_GC!A30:J32,6,FALSE)))),(IF(C5="Prysmian",(VLOOKUP(C12,lg_database_prysmian!A103:J105,6,FALSE)),(VLOOKUP(C12,lg_database_GC!A30:J32,6,FALSE))))) -> 1140
B21: Nombre de monteurs | C21: 2 | D21: personnes | H21: 12/20 kV
B22: Prix achat accesoire raccordement | D22: € | H22: 18/30 kV
B23: Coût horaire raccordement | D23: €/heure
B24: Temps raccordement pour une boite | D24: min
B26: Distance Prysmian - chantier | C26: 700 | D26: km
B28: longueur de garde raccordement | C28: 1.5 | D28: mètres

Sheet Resultats_simulation (hidden)
B2: Saisie des données installation cable | C2: Cable standard | H2: Cable EDR
B3: Longueur de la tranchée | C3: =Donnees_VRD!C3 -> 0 | D3: mètres | H3: =Donnees_VRD!C3 -> 0 | I3: mètres
B5: Volume de terre excavée | C5: =Donnees_VRD!C8*Donnees_VRD!C7*Donnees_VRD!C3+C19*((Donnees_VRD!C11-Donnees_VRD!C7)*Donnees_VRD!C8*Donnees_VRD!C12) ->  | D5: mètres3 | H5: =C5 ->  | I5: mètres3
B6: Volume de terre (déblais) | C6: =(Donnees_VRD!C11*Donnees_VRD!C12*Donnees_VRD!C14*Resultats_simulation!C19)+(Donnees_VRD!C3*Donnees_VRD!C7*Donnees_VRD!C9)-(C19*Donnees_VRD!C12*Donnees_VRD!C9*Donnees_VRD!C7) ->  | D6: mètres3 | H6: 0 | I6: mètres3
B7: Poids terre (déblais) | C7: =C6*Donnees_VRD!$C$16 ->  | D7: Tonnes | H7: =H6*Donnees_VRD!$C$16 -> 0 | I7: Tonnes
B8: Nombre de camions pour évacuation | C8: =ROUNDUP(C7/(E8),0) ->  | D8: camions de | E8: =Donnees_VRD!C29 -> 0 | F8: tonnes | H8: =H7/J8 ->  | I8: camions de | J8: =Donnees_VRD!C29 -> 0 | K8: tonnes
B9: Coût traitement des déchets | C9: =Donnees_VRD!C34*Resultats_simulation!C6-Donnees_VRD!C35*Resultats_simulation!C6 ->  | D9: € | H9: =Donnees_VRD!C34*Resultats_simulation!H6-Donnees_VRD!C35*Resultats_simulation!H6 -> 0 | I9: €
B10: Coût évacuation déblais | C10: =((((Donnees_VRD!$C$31/60)+(Donnees_VRD!$C$26/(Donnees_VRD!$C$30)))*2*Donnees_VRD!$C$33)+(Donnees_VRD!$C$26*2*Donnees_VRD!$C$32*calcul_cable!$C$14))*Resultats_simulation!C8 ->  | D10: € | H10: =((((Donnees_VRD!$C$31/60)+(Donnees_VRD!$C$26*(Donnees_VRD!$C$30/60)))*2*Donnees_VRD!$C$33)+(Donnees_VRD!$C$26*2*Donnees_VRD!$C$32*calcul_cable!$C$14))*Resultats_simulation!H8 ->  | I10: €
B11: Coût traitement de la terre | C11: =C9+C10+C31 ->  | D11: € | H11: =H9+H10+H31 ->  | I11: €
B13: Volume de sable nécessaire pour pose cable | C13: =(Donnees_VRD!C3*Donnees_VRD!C7*Donnees_VRD!C9)-((PI()*((calcul_cable!C6)/2)^2*Donnees_VRD!C3)*0.64*Donnees_VRD!C6)-(C19*Donnees_VRD!C12*Donnees_VRD!C9*Donnees_VRD!C7) ->  | D13: mètres3 | H13: 0 | I13: mètres3
B14: Poids du sable nécessaire pour pose cable | C14: =C13*Donnees_VRD!$C$17 ->  | D14: Tonnes | H14: =H13*Donnees_VRD!$C$17 -> 0 | I14: Tonnes
B15: Nombre de camions de sable pour pose cable | C15: =ROUNDUP(C14/(E15),0) ->  | D15: camions de | E15: =Donnees_VRD!C29 -> 0 | F15: tonnes | H15: =ROUNDUP(H14/J15,1) ->  | I15: camions de | J15: =Donnees_VRD!C29 -> 0 | K15: tonnes
B16: Montant Achat sable pour pose cable | C16: =Donnees_VRD!$C$22*Resultats_simulation!C14 ->  | D16: € | H16: =Donnees_VRD!$C$22*Resultats_simulation!H14 -> 0 | I16: €
B17: Montant transport sable pour pose cable | C17: =((((Donnees_VRD!$C$31/60)+(Donnees_VRD!$C$19/(Donnees_VRD!$C$30)))*2*Donnees_VRD!$C$33)+(Donnees_VRD!$C$19*2*Donnees_VRD!$C$32*calcul_cable!$C$14))*Resultats_simulation!C15 ->  | D17: € | H17: =((((Donnees_VRD!$C$31/60)+(Donnees_VRD!$C$19/(Donnees_VRD!$C$30)))*2*Donnees_VRD!$C$33)+(Donnees_VRD!$C$19*2*Donnees_VRD!$C$32*calcul_cable!$C$14))*Resultats_simulation!H15 ->  | I17: €
B19: Nombre de boîtes raccordement | C19: =C46 ->  | D19: unités | H19: =H46 ->  | I19: unités
B20: Volume de sable nécessaire pour raccordement | C20: =(Donnees_VRD!C11*Donnees_VRD!C12*Donnees_VRD!C14*Resultats_simulation!C19)-((PI()*((calcul_cable!C6)/2)^2*0.64*Donnees_VRD!C12*Resultats_simulation!C19)*Donnees_VRD!C6) ->  | D20: mètres3 | H20: =Donnees_VRD!$C$11*Donnees_VRD!$C$12*Donnees_VRD!$C$14*Resultats_simulation!H19-((PI()*((calcul_cable!C6)/2)^2*0.64*Donnees_VRD!C12*Resultats_simulation!H19)*Donnees_VRD!C6) ->  | I20: mètres3
B21: Poids du sable nécessaire pour raccordement | C21: =C20*Donnees_VRD!C17 ->  | D21: Tonnes | H21: =H20*Donnees_VRD!C17 ->  | I21: Tonnes
B22: Nombre de camions de sable pour raccordement | C22: =ROUNDUP(C21/(E22),0) ->  | D22: camions de | E22: =Donnees_VRD!$C$29 -> 0 | F22: tonnes | H22: =ROUNDUP(H21/(J22),0) ->  | I22: camions de | J22: =Donnees_VRD!$C$29 -> 0 | K22: tonnes
B23: Montant Achat sable pour raccordement | C23: =C21*Donnees_VRD!C22 ->  | D23: € | H23: =H21*Donnees_VRD!C22 ->  | I23: €
B24: Montant livraison sable pour pose cable | C24: =((((Donnees_VRD!$C$31/60)+(Donnees_VRD!$C$19/(Donnees_VRD!$C$30)))*2*Donnees_VRD!$C$33)+(Donnees_VRD!$C$19*2*Donnees_VRD!$C$32*calcul_cable!$C$14))*Resultats_simulation!C22 ->  | D24: € | H24: =((((Donnees_VRD!$C$31/60)+(Donnees_VRD!$C$19/(Donnees_VRD!$C$30)))*2*Donnees_VRD!$C$33)+(Donnees_VRD!$C$19*2*Donnees_VRD!$C$32*calcul_cable!$C$14))*Resultats_simulation!H22 ->  | I24: €
B26: Volume sable total | C26: =C14+C21 ->  | D26: tonnes | H26: =H14+H21 ->  | I26: tonnes
B27: Nombre de camions total | C27: =ROUNDUP(C26/(E27),0) ->  | D27: camions de | E27: =Donnees_VRD!$C$29 -> 0 | F27: tonnes | H27: =ROUNDUP(H26/(J27),0) ->  | I27: camions de | J27: =Donnees_VRD!$C$29 -> 0 | K27: tonnes
B28: Montant Achat sable | C28: =Donnees_VRD!$C$22*Resultats_simulation!C26 ->  | D28: € | H28: =Donnees_VRD!$C$22*Resultats_simulation!H26 ->  | I28: €
B29: Montant transport sable | C29: =((((Donnees_VRD!$C$31/60)+(Donnees_VRD!$C$19/(Donnees_VRD!$C$30)))*2*Donnees_VRD!$C$33)+(Donnees_VRD!$C$19*2*Donnees_VRD!$C$32*calcul_cable!$C$14))*Resultats_simulation!C27 ->  | D29: € | H29: =((((Donnees_VRD!$C$31/60)+(Donnees_VRD!$C$19/(Donnees_VRD!$C$30)))*2*Donnees_VRD!$C$33)+(Donnees_VRD!$C$19*2*Donnees_VRD!$C$32*calcul_cable!$C$14))*Resultats_simulation!H27 ->  | I29: €
B30: Montant total sable | C30: =C16+C17+C23+C24 ->  | D30: € | H30: =H16+H17+H23+H24 ->  | I30: €
B31: Cout grillage avertisseur | C31: =Donnees_VRD!C37*Donnees_VRD!C3 -> 0 | D31: € | H31: =Donnees_VRD!C37*Donnees_VRD!C3 -> 0 | I31: €
B33: Coût tractopelle(s) | C33: =(Donnees_engin!C5+Donnees_engin!C4*ROUNDUP(Resultats_simulation!C43/8,0))*Donnees_engin!C16 ->  | H33: =(Donnees_engin!C5+Donnees_engin!C4*ROUNDUP(Resultats_simulation!H43/8,0))*Donnees_engin!C20 -> 0
B34: Coût trancheuse(s) | C34: =(Donnees_engin!C9+Donnees_engin!C8*ROUNDUP(Resultats_simulation!C43/8,0))*Donnees_engin!C17 ->  | H34: =(Donnees_engin!C9+Donnees_engin!C8*ROUNDUP(Resultats_simulation!H43/8,0))*Donnees_engin!C21 -> 0
B35: Coût trancheuse(s) à chaine | C35: =(Donnees_engin!C13+Donnees_engin!C12*Resultats_simulation!C43/8)*Donnees_engin!C18 ->  | H35: =(Donnees_engin!C13+Donnees_engin!C12*Resultats_simulation!C43/8)*Donnees_engin!C22 -> 
B36: Coût engin tranchée | C36: =C33+C34+C35 ->  | D36: € | H36: =H33+H34+H35 ->  | I36: €
B38: Sous total VRD | C38: =C36+C30+C11 ->  | D38: € | H38: =H36+H30+H11 ->  | I38: €
B40: Quantité de câble nécessaire | C40: =Donnees_VRD!$C$3*Donnees_VRD!C6 -> 0 | D40: mètres | H40: =Donnees_VRD!$C$3*Donnees_VRD!C6 -> 0 | I40: mètres
B41: Quantité de câble /touret | C41: =Donnees_installation!C13 -> 800 | D41: mètres | H41: =Donnees_installation!C14 -> 600 | I41: mètres
B42: Nombre de tourets "type" | C42: =ROUNDUP((C3+(C66/Donnees_VRD!C6))/C41,0)*Donnees_VRD!C6 ->  | D42: tourets type | E42: =Donnees_installation!C12 -> J | H42: =ROUNDUP((H3+(H66/Donnees_VRD!C6))/H41,0)*Donnees_VRD!C6 ->  | I42: tourets type | J42: =Donnees_installation!C12 -> J
B43: Nombre d'heure de déroulage | C43: =(Donnees_VRD!C3*Donnees_VRD!C6)/(Donnees_installation!$C$9/8) ->  | D43: heures | H43: =(Donnees_VRD!C3*Donnees_VRD!C6)/(Donnees_installation!$C$11/8) -> 0 | I43: heures
B44: Coût opérateur déroulage | C44: =C43*Donnees_installation!$C$4*Donnees_installation!$C$10 ->  | D44: € | H44: =H43*Donnees_installation!$C$4*Donnees_installation!$F$10 -> 0 | I44: €
B45: Montant achat câble | C45: =(C40+C65)*Donnees_installation!C6 ->  | D45: € | H45: =(H40+H65)*Donnees_installation!C7 ->  | I45: €
B46: Nombre de boîtes raccordement | C46: =((C42/Donnees_VRD!C6)-1)*Donnees_VRD!C6 ->  | D46: unités | H46: =((H42/Donnees_VRD!C6)-1)*Donnees_VRD!C6 ->  | I46: unités
B47: Montant total raccordement | C47: =C46*Donnees_installation!$C$22+(C46*(Donnees_installation!$C$24/60)*Donnees_installation!$C$23*Donnees_installation!$C$21) ->  | D47: € | H47: =H46*Donnees_installation!$C$22+(H46*(Donnees_installation!$C$24/60)*Donnees_installation!$C$23*Donnees_installation!$C$21) ->  | I47: €
B49: Total câble et raccordement | C49: =C44+C45+C47 ->  | D49: € | H49: =H44+H45+H47 ->  | I49: €
B51: Montant total chantier | C51: =C49+C38 ->  | D51: € | H51: =H49+H38 ->  | I51: €
B53: Quantité équivalent CO2 Transport Chantier | C53: =SUM(calcul_cable!C16:C17) ->  | D53: kg éq. CO2 | H53: =SUM(calcul_cable!F16:F17) ->  | I53: kg éq. CO2
B54: Quantité équivalent CO2 Engins Chantier | C54: =calcul_cable!C33 ->  | D54: kg éq. CO2 | H54: =calcul_cable!F33 ->  | I54: kg éq. CO2
B55: Quantité équivalent CO2 Transport Prysmian | C55: =calcul_cable!C21 ->  | D55: kg éq. CO2 | H55: =calcul_cable!F21 ->  | I55: kg éq. CO2
B56: Quantité équivalent CO2 Cable | D56: kg éq. CO2 | I56: kg éq. CO2
B57: Quantité équivalent CO2 Transport | C57: =SUM(C53:C56) ->  | D57: kg éq. CO2 | H57: =SUM(H53:H56) ->  | I57: kg éq. CO2
B59: Valeur de gain | H59: =C51-H51 ->  | I59: €
B60: % de gain | H60: =ROUNDUP((C51-H51)/C51 *100,1) ->  | I60: %
B61: Réduction de l'impact sur le réchauffement climatique | H61: =C57-H57 ->  | I61: kg éq. CO2
B62: Réduction de l'impact sur le réchauffement climatique | H62: =ROUNDUP((C57-H57)/C57*100,1) ->  | I62: %
B63: Travail horaire par opérateur | C63: =C43/Donnees_installation!C10 ->  | D63: h/personne | H63: =H43/Donnees_installation!F10 -> 0 | I63: h/personne
B65: Quantité câble pour raccordement | C65: =((2*Donnees_installation!C28*C46)+(2*4))*Donnees_VRD!C6 ->  | D65: mètres | H65: =((2*Donnees_installation!C28*H46)+(2*4))*Donnees_VRD!C6 ->  | I65: mètres
C66: =((2*Donnees_installation!C28*(ROUNDUP((C3/C41),0)))+(2*2.5))*Donnees_VRD!C6 -> 0 | H66: =((2*Donnees_installation!C28*(ROUNDUP((C3/H41),0)))+(2*2.5))*Donnees_VRD!C6 -> 0
B68: Cout opérateurs | C68: =C44 ->  | D68: € | H68: =H44 -> 0 | I68: €
B69: Coût monteurs | C69: =C46*(Donnees_installation!$C$24/60)*Donnees_installation!$C$23*Donnees_installation!$C$21 ->  | D69: € | H69: =H46*(Donnees_installation!$C$24/60)*Donnees_installation!$C$23*Donnees_installation!$C$21 ->  | I69: €
B71: Nombre d'heures
B72: Opérateurs | C72: =C43 ->  | D72: heures | H72: =H43 -> 0 | I72: heures
B73: Monteurs | C73: =C46*Donnees_installation!C24 ->  | D73: heures | H73: =H46*Donnees_installation!C24 ->  | I73: heures
B74: Total heures | C74: =C72+C73 ->  | D74: heures | H74: =H72+H73 ->  | I74: heures
C75: =C74/8 ->  | D75: jours | H75: =H74/8 ->  | I75: jours
B77: Nombre de personnes
B78: Opérateurs | C78: =Donnees_installation!C10 -> 0 | H78: =Donnees_installation!F10 -> 3
B79: Monteurs | C79: =Donnees_installation!C21 -> 2 | H79: =Donnees_installation!C21 -> 2
C80: =C78+C79 -> 2 | H80: =H78+H79 -> 5
C82: =C75/C80 ->  | H82: =H75/H80 -> 

Sheet calcul_cable (hidden)
B2: Calcul cable | C2: Cable standard | F2: Cable EDR
B3: Voltage | C3: =Donnees_installation!C8 -> 12/20 kV | F3: =C3 -> 12/20 kV
B4: Type de cables | C4: =Donnees_installation!C3 -> 3 x 1 x 300 ALU | F4: =Donnees_installation!C3 -> 3 x 1 x 300 ALU
B5: Fournisseur | C5: =Donnees_installation!C5 -> GC | F5: =C5 -> GC
B6: Diamètre torsade | C6: =IF(C3="12/20 kV",(IF(C5="Prysmian",(VLOOKUP(C4,diametre_cable!H3:J9,3,FALSE)),(VLOOKUP(C4,diametre_cable!H25:J31,3,FALSE)))),(IF(C5="Prysmian",(VLOOKUP(C4,diametre_cable!H14:J20,3,FALSE)),(VLOOKUP(C4,diametre_cable!H36:J42,3,FALSE))))) -> 0.09 | D6: mètres | F6: =IF(F3="12/20 kV",(IF(F5="Prysmian",(VLOOKUP(F4,diametre_cable!B3:D9,3,FALSE)),(VLOOKUP(F4,diametre_cable!B25:D31,3,FALSE)))),(IF(F5="Prysmian",(VLOOKUP(F4,diametre_cable!B14:D20,3,FALSE)),(VLOOKUP(F4,diametre_cable!B36:D42,3,FALSE))))) -> 0.101 | G6: mètres
B7: Type de touret souhaité | C7: =Donnees_installation!C12 -> J | F7: =Donnees_installation!C12 -> J
B8: Longueur par touret | C8: =Donnees_installation!C13 -> 800 | F8: =Donnees_installation!C14 -> 600
B10: Prix accessoire pièce | C10: =Donnees_installation!C22 -> 0 | D10: € | F10: =Donnees_installation!C22 -> 0 | G10: €
B11: Nombre accesoires | C11: =ROUNDUP(((Donnees_VRD!$C$3/calcul_cable!C8)-1),0) -> -1 | F11: =ROUNDUP(((Donnees_VRD!$C$3/calcul_cable!F8)-1),0) -> -1
B13: Consommation camion 20T | C13: 35 | D13: L/100km
B14: Consommation camion 20T | C14: =C13/100 -> 0.35 | D14: L/km
B16: Quantité équivalent CO2 Transport sable | C16: =Etude_CO2!$L$5*calcul_cable!$C$14*Donnees_VRD!$C$19*(Resultats_simulation!C15+Resultats_simulation!C22)*2 ->  | D16: kg éq. CO2 | F16: =Etude_CO2!$L$5*calcul_cable!$C$14*Donnees_VRD!$C$19*(Resultats_simulation!H15+Resultats_simulation!H22)*2 ->  | G16: kg éq. CO2
B17: Quantité équivalent CO2 Transport déblais | C17: =Etude_CO2!$L$5*calcul_cable!$C$14*Donnees_VRD!$C$26*Resultats_simulation!C8*2 ->  | D17: kg éq. CO2 | F17: =Etude_CO2!$L$5*calcul_cable!$C$14*Donnees_VRD!$C$26*Resultats_simulation!H8*2 ->  | G17: kg éq. CO2
B19: Combien de tourets pleins sur 1 seul camion | C19: =VLOOKUP(C7,Chargement_tourets!B21:D33,3,FALSE) -> 8 | F19: =C19 -> 8
B20: Combien de tourets vides sur 1 seul camion | C20: =VLOOKUP(C7,Chargement_tourets!B21:D33,2,FALSE) -> 8 | F20: =C20 -> 8
B21: Quantité équivalent CO2 Transport Prysmian | C21: =(Donnees_installation!$C$26*ROUNDUP(Resultats_simulation!C42/calcul_cable!C19,0)+Donnees_installation!$C$26*ROUNDUP(Resultats_simulation!C42/calcul_cable!C20,0))*calcul_cable!$C$14*Etude_CO2!$L$5 ->  | D21: kg éq. CO2 | F21: =(Donnees_installation!$C$26*ROUNDUP(Resultats_simulation!H42/calcul_cable!F19,0)+Donnees_installation!$C$26*ROUNDUP(Resultats_simulation!H42/calcul_cable!F20,0))*calcul_cable!$C$14*Etude_CO2!$L$5 ->  | G21: kg éq. CO2
B24: Nombre tractopelle | C24: =Donnees_engin!C16 -> 0 | F24: =Donnees_engin!C20 -> 0
B25: Consommation carburant tractopelle | C25: 9 | D25: L/H | F25: =C25 -> 9 | G25: L/H | J25: conso jour : 70L
C26: =C24*C25*Resultats_simulation!$C$43*Etude_CO2!$L$5 ->  | D26: kg éq. CO2 | F26: =F24*F25*Resultats_simulation!$H$43*Etude_CO2!$L$5 -> 0 | G26: kg éq. CO2
B27: Nombre Trancheuse à roue | C27: =Donnees_engin!C17 -> 0 | F27: =Donnees_engin!C21 -> 0
B28: Consommation carburant trancheuse à chaine | C28: 15 | D28: L/H | F28: =C28 -> 15 | G28: L/H
C29: =C27*C28*Resultats_simulation!$C$43*Etude_CO2!$L$5 ->  | D29: kg éq. CO2 | F29: =F27*F28*Resultats_simulation!$H$43*Etude_CO2!$L$5 -> 0 | G29: kg éq. CO2
B30: Nombre Trancheuse à chaine | C30: =Donnees_engin!C18 -> 0 | F30: =Donnees_engin!C22 -> 0
B31: Consommation carburant | C31: 15 | D31: L/H | F31: =C31 -> 15 | G31: L/H
C32: =C30*C31*Resultats_simulation!$C$43*Etude_CO2!$L$5 ->  | D32: kg éq. CO2 | F32: =F30*F31*Resultats_simulation!$C$43*Etude_CO2!$L$5 ->  | G32: kg éq. CO2
B33: Quantité équivalent CO2 Engins Chantier | C33: =SUM(C26+C29+C32) ->  | D33: kg éq. CO2 | F33: =SUM(F26+F29+F32) ->  | G33: kg éq. CO2

Sheet Etude_CO2 (hidden)
J1: Facteurs d’émission des sources d’énergie de l’arrêté du 10 avril 2012
B2: GES = Quantité de gaz émis´ PRG | J2: Nature de la source d'énergie | K2: Type détaillé de la source d'énergie | L2: Facteur émission (kg CO2 par litre)
B3: Résultat des mesures des effluents gazeux (débit,concentrations) | J3: Essence automobile | K3: SP95 - SP98 | L3: 2.71
B4: Pouvoir de Réchauffement Global des gaz (PRG) | J4: Gazole | K4: Gazole routier à la pompe | L4: 3.07
L5: =L4 -> 3.07
B7: GES = Donnée d 'activité ´ FE ´ PRG
B8: Donnée d’activité
B9: Facteur d’émission (FE)
B10: PRG
B13: Base consommation véhicule
B14: Type (T) | C14: Conso L/100km | D14: Conso L/km | F14: Type (T) | G14: Conso L/100km
B15: 0 a 3 | C15: 43.2 | D15: =C15/100 -> 0.432 | F15: 0 | G15: 43.2
B16: 4 a 8 | C16: 50.6 | D16: =C16/100 -> 0.506 | F16: 1 | G16: 43.2
B17: 10 a 15 | C17: 42.5 | D17: =C17/100 -> 0.425 | F17: 2 | G17: 43.2
B18: 15 et + | C18: 48.1 | D18: =C18/100 -> 0.481 | F18: 3 | G18: 43.2
F19: 4 | G19: 50.6
F20: 5 | G20: 50.6
F21: 6 | G21: 50.6
F22: 7 | G22: 50.6
F23: 8 | G23: 50.6
F24: 9 | G24: 50.6
F25: 10 | G25: 42.5
F26: 11 | G26: 42.5
F27: 12 | G27: 42.5
F28: 13 | G28: 42.5
F29: 14 | G29: 42.5
F30: 15 | G30: 42.5
F31: 16 | G31: 48.1
F32: 17 | G32: 48.1
F33: 18 | G33: 48.1
F34: 19 | G34: 48.1
F35: 20 | G35: 48.1
F36: 21 | G36: 48.1
F37: 22 | G37: 48.1
F38: 23 | G38: 48.1
F39: 24 | G39: 48.1
F40: 25 | G40: 48.1
F41: 26 | G41: 48.1
F42: 27 | G42: 48.1
F43: 28 | G43: 48.1
F44: 29 | G44: 48.1
F45: 30 | G45: 48.1

Sheet Case_liste (hidden)
A1: 1
A2: 2
A3: 3
A4: 4 | B4: cable | D4: monteurs
A5: 5
A6: 6 | B6: 1 | D6: 1 | Y6: EDR - PR - 18/30kV | AA6: EDR 18/30 kV | AC6: EDR 12/20 kV
A7: 7 | B7: 2 | D7: 2 | E7: GC | J7: GBM | O7: EDR prysmian | V7: EDR - PR - 12/20kV | Y7: 95 &150 | AA7: 240 | AC7: 240
A8: 8 | B8: 3 | D8: 3 | E8: Prysmian | J8: GBL
A9: 9 | B9: 4 | J9: HBM | M9: EDR prysmian | O9: 3 x 1 x 50 ALU | P9: 3 x 1 x 95 ALU | Q9: 3 x 1 x 150 ALU | R9: 3 x 1 x 240 ALU | S9: 3 x 1 x 240 CU | Y9: H | AA9: J | AC9: I
A10: 10 | J10: HBL | O10: GBM | P10: GBM | Q10: GBM | R10: HBM | S10: HBM | V10: 3 x 1 x 50 ALU | Y10: I | AC10: J
A11: 11 | J11: IBM | M11: H | O11: HBM | P11: HBM | Q11: HBM | R11: IBM | S11: IBM | V11: 3 x 1 x 95 ALU | Y11: J
A12: 12 | J12: GBE | M12: I | O12: IBM | P12: IBM | Q12: IBM | R12: HBE | S12: HBE | V12: 3 x 1 x 150 ALU
A13: 13 | J13: HBE | M13: J | O13: GBE | P13: HBE | Q13: HBE | R13: IBE | S13: IBE | V13: 3 x 1 x 240 ALU | Y13: 3 x 1 x 95 ALU
A14: 14 | J14: HBW34 | O14: HBE | P14: IBE | Q14: IBE | R14: BOXY | S14: BOXY | V14: 3 x 1 x 300 ALU | Y14: 3 x 1 x 150 ALU
A15: 15 | G15: Cable disponible | J15: IBE | O15: HBW34 | P15: BOXY | Q15: BOXY | R15: JFM1 | S15: JFM1 | V15: 3 x 1 x 400 ALU | Y15: 3 x 1 x 240 ALU
A16: 16 | J16: BOXY | O16: IBE | P16: JFM1 | Q16: JFM1 | R16: JFM2 | S16: JFM2 | V16: 3 x 1 x 240 CU | Y16: 3 x 1 x 300 ALU
A17: 17 | G17: 3 x 1 x 50 ALU | J17: JFM1 | O17: BOXY | P17: JFM2 | Q17: JFM2 | R17: JFM3 | S17: JFM3 | Y17: 3 x 1 x 400 ALU
A18: 18 | G18: 3 x 1 x 95 ALU | J18: JFM2 | O18: JFM1 | P18: JFM3 | Q18: JFM3 | Y18: 3 x 1 x 240 CU
A19: 19 | G19: 3 x 1 x 150 ALU | J19: JFM3 | O19: JFM2
A20: 20 | B20: Type engin | G20: 3 x 1 x 240 ALU | O20: JFM3
A21: 21 | B21: Tractopelle | G21: 3 x 1 x 240 CU
A22: 22 | B22: Trancheuse à chaine | G22: 3 x 1 x 300 ALU | P22: EDR GC
A23: 23 | B23: Trancheuse à roue | G23: 3 x 1 x 400 ALU | Y23: EDR - GC - 18/30kV
A24: 24 | P24: 3 x 1 x 150 ALU | Q24: 3 x 1 x 240 ALU | R24: 3 x 1 x 240 CU | V24: EDR - GC - 12/20kV | Y24: 3 x 1 x 95 ALU
A25: 25 | P25: H | Q25: H | R25: H | V25: 3 x 1 x 150 ALU | Y25: 3 x 1 x 150 ALU
A26: 26 | I26: 12/20 kV | P26: I | Q26: I | R26: I | V26: 3 x 1 x 240 ALU | Y26: 3 x 1 x 240 ALU
A27: 27 | I27: 18/30 kV | P27: J | Q27: J | R27: J | V27: 3 x 1 x 300 ALU | Y27: 3 x 1 x 300 ALU
A28: 28 | V28: 3 x 1 x 400 ALU | Y28: 3 x 1 x 400 ALU
A29: 29 | V29: 3 x 1 x 240 CU | Y29: 3 x 1 x 240 CU
A30: 30
A31: 31
A32: 32
A33: 33
A34: 34
A35: 35 | P35: HBW34 | Q35: HBW34 | R35: HBW34
A36: 36
A37: 37
A38: 38
A39: 39
A40: 40
A41: 41
A42: 42
A43: 43
A44: 44
A45: 45
A46: 46
A47: 47
A48: 48
A49: 49
A50: 50
A51: 51
A52: 52
A53: 53
A54: 54
A55: 55
A56: 56
A57: 57
A58: 58
A59: 59
A60: 60
A61: 61
A62: 62
A63: 63
A64: 64
A65: 65
A66: 66
A67: 67
A68: 68
A69: 69
A70: 70
A71: 71
A72: 72
A73: 73
A74: 74
A75: 75
A76: 76
A77: 77
A78: 78
A79: 79
A80: 80
A81: 81
A82: 82
A83: 83
A84: 84
A85: 85
A86: 86
A87: 87
A88: 88
A89: 89
A90: 90
A91: 91
A92: 92
A93: 93
A94: 94
A95: 95
A96: 96
A97: 97
A98: 98
A99: 99
A100: 100
A101: 101
A102: 102
A103: 103
A104: 104
A105: 105
A106: 106
A107: 107
A108: 108
A109: 109
A110: 110
A111: 111
A112: 112
A113: 113
A114: 114
A115: 115
A116: 116
A117: 117
A118: 118
A119: 119
A120: 120
A121: 121
A122: 122
A123: 123
A124: 124
A125: 125
A126: 126
A127: 127
A128: 128
A129: 129
A130: 130
A131: 131
A132: 132
A133: 133
A134: 134
A135: 135
A136: 136
A137: 137
A138: 138
A139: 139
A140: 140
A141: 141
A142: 142
A143: 143
A144: 144
A145: 145
A146: 146
A147: 147
A148: 148
A149: 149
A150: 150
A151: 151
A152: 152
A153: 153
A154: 154
A155: 155
A156: 156
A157: 157
A158: 158
A159: 159
A160: 160
A161: 161
A162: 162
A163: 163
A164: 164
A165: 165
A166: 166
A167: 167
A168: 168
A169: 169
A170: 170
A171: 171
A172: 172
A173: 173
A174: 174
A175: 175
A176: 176
A177: 177
A178: 178
A179: 179
A180: 180
A181: 181
A182: 182
A183: 183
A184: 184
A185: 185
A186: 186
A187: 187
A188: 188
A189: 189
A190: 190
A191: 191
A192: 192
A193: 193
A194: 194
A195: 195
A196: 196
A197: 197
A198: 198
A199: 199
A200: 200
... 103 more rows

Sheet Database_tranchee (hidden)
B1: 1 | C1: 2 | D1: 3 | E1: 4 | F1: 5 | G1: 6 | H1: 7 | I1: 8 | J1: 9 | K1: 10 | L1: 11
B3: Nombre de câble | C3: Largeur std | D3: Largeur EDR | E3: Profondeur std | F3: Profondeur EDR | G3: Epaisseur lit de sable | H3: Largueur racc | I3: Longueur racc | J3: Profondeur racc std | K3: Profondeur racc EDR | L3: Epaisseur sable racc
B4: 1 | C4: 0.3 | D4: 0.2 | E4: 0.8 | F4: 0.7 | G4: 0.3 | H4: 1 | I4: 1.1 | J4: 0.8 | K4: 0.7 | L4: =G4 -> 0.3
B5: 2 | C5: 0.5 | D5: =C5-0.1 -> 0.4 | E5: 0.8 | F5: 0.7 | G5: 0.3 | H5: =E5+0.2 -> 1 | I5: 1.1 | J5: 0.8 | K5: =F5 -> 0.7 | L5: =G5 -> 0.3
B6: 3 | C6: 0.7 | D6: =C6-0.1 -> 0.6 | E6: 0.8 | F6: 0.7 | G6: 0.3 | H6: =E6+0.2 -> 1 | I6: 1.1 | J6: 0.8 | K6: =F6 -> 0.7 | L6: =G6 -> 0.3
B7: 4 | C7: 0.5 | D7: =C7-0.1 -> 0.4 | E7: 1 | F7: 0.9 | G7: 0.5 | H7: =E7+0.2 -> 1.2 | I7: 1.1 | J7: =E7 -> 1 | K7: =F7 -> 0.9 | L7: =G7 -> 0.5
B9: Nombre de câble dans tranchée | C9: =Donnees_VRD!C6 -> 0 | D9: cables
B11: Largeur tranchée | C11: =VLOOKUP($C$9,Database_tranchee!B4:L7,2,FALSE) ->  | D11: mètres std | E11: 50 | F11: EDR | G11: =VLOOKUP($C$9,Database_tranchee!B4:L7,3,FALSE) ->  | H11: mètres
B12: Profondeur tranchée | C12: =VLOOKUP($C$9,Database_tranchee!B4:L7,4,FALSE) ->  | D12: mètres std | E12: 51 | F12: EDR | G12: =VLOOKUP($C$9,Database_tranchee!B4:L7,5,FALSE) ->  | H12: mètres
B13: Epaisseur du lit de sable | C13: =VLOOKUP($C$9,Database_tranchee!B4:L7,6,FALSE) ->  | D13: mètres | E13: 52
B15: Largeur tranchée raccordement | C15: =VLOOKUP($C$9,Database_tranchee!B4:L7,7,FALSE) ->  | D15: mètres | E15: 57
B16: Longueur tranchée raccordement | C16: =VLOOKUP($C$9,Database_tranchee!B4:L7,8,FALSE) ->  | D16: mètres | E16: 58
B17: Profondeur tranchée raccordement | C17: =VLOOKUP($C$9,Database_tranchee!B4:L7,9,FALSE) ->  | D17: mètres std | E17: 56 | F17: EDR | G17: =VLOOKUP($C$9,Database_tranchee!B4:L7,10,FALSE) ->  | H17: mètres
B18: Epaisseur du lit de sable raccordement | C18: =VLOOKUP($C$9,Database_tranchee!B4:L7,11,FALSE) ->  | D18: mètres | E18: 59

Sheet Chargement_tourets (hidden)
A1: Infos transmis par Chanoine Corinne le 30 octobre 2018
D2: Capacité de chargement d'un camion
D3: Encombrement / surface du plancher de 2.6 x 13.2m
B5: Diamètre | C5: Nombre de tourets vides | D5: Nombre de tourets pleins - chargement < ou = à 24T | E5: Remarque
B6: A | C6: 480 | D6: 85 | E6: 68 si ABP largeur 0.58 m
B7: B | C7: 220 | D7: 56
B8: C | C8: 120 | D8: 48
B9: D | C9: 81 | D9: 30
B10: E | C10: 69 | D10: 27
B11: F | C11: 48 | D11: 21
B12: G | C12: 18 | D12: 12 | E12: ou 13 selon le poids (1 en canon à l'arrière)
B13: H | C13: 16 | D13: 10 | E13: ou 11 selon le poids (1 en canon à l'arrière)
B14: I | C14: 12 | D14: 8 | E14: ou 10 si longueur >13 m
B15: J | C15: 8 | D15: 8 | E15: ou 4 si surbaissée si >3.5 / touret
B20: Type | C20: Nombre de tourets vides | D20: Nombre de tourets pleins - chargement < ou = à 24T | E20: Remarque
B21: GBM | C21: 18 | D21: 12 | E21: ou 13 selon le poids (1 en canon à l'arrière)
B22: GBL | C22: 18 | D22: 12 | E22: ou 13 selon le poids (1 en canon à l'arrière)
A23: HBM | B23: H | C23: 16 | D23: 10 | E23: ou 11 selon le poids (1 en canon à l'arrière)
B24: HBL | C24: 16 | D24: 10 | E24: ou 11 selon le poids (1 en canon à l'arrière)
A25: IBM | B25: I | C25: 12 | D25: 8 | E25: ou 10 si longueur >13 m
B26: GBE | C26: 18 | D26: 12 | E26: ou 13 selon le poids (1 en canon à l'arrière)
B27: HBE | C27: 16 | D27: 10 | E27: ou 11 selon le poids (1 en canon à l'arrière)
B28: HBW34 | C28: 16 | D28: 10 | E28: ou 11 selon le poids (1 en canon à l'arrière)
B29: IBE | C29: 12 | D29: 8 | E29: ou 10 si longueur >13 m
B30: BOXY | C30: 8 | D30: 4
B31: JFM1 | C31: 8 | D31: 8 | E31: ou 4 si surbaissée si >3.5 / touret
B32: JFM2 | C32: 8 | D32: 8 | E32: ou 4 si surbaissée si >3.5 / touret
A33: JFM3 | B33: J | C33: 8 | D33: 8 | E33: ou 4 si surbaissée si >3.5 / touret

Sheet lg_database_prysmian (hidden)
C1: CABLES EDR
C2: 12/20kV
A3: Touret | C3: 3 x 1 x 50 ALU | D3: 3 x 1 x 95 ALU | E3: 3 x 1 x 150 ALU | F3: 3 x 1 x 240 ALU | G3: 3 x 1 x 300 ALU | H3: 3 x 1 x 400 ALU | I3: 3 x 1 x 240 CU
B4: Code CA | C4: P26EDR-163 | D4: P26EDR-165 | E4: P26EDR-167 | F4: P26EDR-169 | G4: P26EDR-170 | H4: P26EDR-171 | I4: P26EDR-885
B5: Code SAP | C5: 20234567 | D5: 20171640 | E5: 20171641 | F5: 20171642 | G5: 20171645 | H5: NC | I5: 20171646
B6: Touret
A7: H | B7: HBM | C7: 330 | D7: 240 | E7: 230 | F7: 215 | G7: 0 | H7: 0 | I7: 215
A8: I | B8: IBM | C8: 590 | D8: 475 | E8: 455 | F8: 355 | G8: 0 | H8: 0 | I8: 355
A9: J | B9: JFM2 | C9: 760 | D9: 650 | E9: 615 | F9: 490 | G9: 440 | H9: 0 | I9: 480
A10: GBM | B10: DOF190M | C10: 170 | D10: 160 | E10: 155 | F10: 0 | G10: 0 | H10: 0 | I10: 0
A11: GBL | B11: DOF188M | C11: 0 | D11: 0 | E11: 0 | F11: 0 | G11: 0 | H11: 0 | I11: 0
A12: HBL | B12: DOF220F | C12: 0 | D12: 0 | E12: 0 | F12: 0 | G12: 0 | H12: 0 | I12: 0
A13: GBE | B13: DWF1900 | C13: 280 | D13: 0 | E13: 0 | F13: 0 | G13: 0 | H13: 0 | I13: 0
A14: HBE | B14: DWF2200 | C14: 330 | D14: 240 | E14: 230 | F14: 215 | G14: 0 | H14: 0 | I14: 215
A15: HBW34 | B15: DWF2240 | C15: 470 | D15: 0 | E15: 0 | F15: 0 | G15: 0 | H15: 0 | I15: 0
A16: IBE | B16: DWF2600 | C16: 590 | D16: 475 | E16: 455 | F16: 355 | G16: 0 | H16: 0 | I16: 355
A17: BOXY | C17: 845 | D17: 645 | E17: 645 | F17: 475 | G17: 0 | H17: 0 | I17: 475
A18: JFM1 | B18: DOF300I | C18: 1150 | D18: 900 | E18: 895 | F18: 685 | G18: 640 | H18: 475 | I18: 670
A19: JFM3 | B19: DOF300R | C19: 1235 | D19: 975 | E19: 955 | F19: 735 | G19: 705 | H19: 510 | I19: 735
A20: TOURET 1 A CREER | B20: - | C20: 3360 | D20: 2695 | E20: 2650 | F20: 2075 | G20: 1810 | H20: 0 | I20: 2075
A21: TOURET 2 A CREER | B21: - | C21: 2130 | D21: 1800 | E21: 1770 | F21: 1300 | G21: 1255 | H21: 0 | I21: 1300
A22: TOURET 3 A CREER | B22: - | C22: 1310 | D22: 1055 | E22: 1035 | F22: 815 | G22: 785 | H22: 0 | I22: 815
C26: CABLES STANDARDS - TORSADE
C27: 12/20kV
A28: Touret | C28: 3 x 1 x 50 ALU | D28: 3 x 1 x 95 ALU | E28: 3 x 1 x 150 ALU | F28: 3 x 1 x 240 ALU | G28: 3 x 1 x 300 ALU | H28: 3 x 1 x 400 ALU | I28: 3 x 1 x 240 CU
B29: Code CA | C29: PBG6-163 | D29: PBG6-165 | E29: PBG6-167 | F29: PBG6-169 | G29: PBG6-170 | H29: PBG6-171 | I29: PBG6-885
B30: Code SAP | C30: 20034743 | D30: 20034744 | E30: 20034745 | F30: 20034746 | G30: 20034747 | H30: 20051891 | I30: 20034756
B31: Touret
A32: H | B32: HBM | C32: 480 | D32: 450 | E32: 430 | F32: 345 | G32: 220 | H32: 0 | I32: 310
A33: I | B33: IBM | C33: 910 | D33: 780 | E33: 755 | F33: 535 | G33: 440 | H33: 0 | I33: 510
A34: J | B34: JFM2 | C34: 1235 | D34: 905 | E34: 940 | F34: 740 | G34: 550 | H34: 435 | I34: 685
A35: GBM | B35: DOF190M | C35: 285 | D35: 265 | E35: 265 | F35: 200 | G35: 150 | H35: 0 | I35: 160
A36: GBL | B36: DOF188M | C36: 345 | D36: 315 | E36: 300 | F36: 220 | G36: 0 | H36: 0 | I36: 220
A37: HBL | B37: DOF220F | C37: 620 | D37: 510 | E37: 510 | F37: 430 | G37: 0 | H37: 0 | I37: 420
A38: GBE | B38: DWF1900 | C38: 410 | D38: 310 | E38: 300 | F38: 0 | G38: 0 | H38: 0 | I38: 0
A39: HBE | B39: DWF2200 | C39: 480 | D39: 450 | E39: 360 | F39: 310 | G39: 220 | H39: 0 | I39: 310
A40: HBW34 | B40: DYF224A | C40: 635 | D40: 505 | E40: 500 | F40: 380 | G40: 0 | H40: 0 | I40: 380
A41: IBE | B41: DWF2600 | C41: 910 | D41: 750 | E41: 735 | F41: 515 | G41: 440 | H41: 0 | I41: 490
A42: BOXY | B42: FER PROCESS | C42: 1335 | D42: 1070 | E42: 890 | F42: 660 | G42: 620 | H42: 460 | I42: 660
A43: JFM1 | B43: DOF300I | C43: 1750 | D43: 1425 | E43: 1400 | F43: 950 | G43: 870 | H43: 655 | I43: 920
A44: JFM3 | B44: DOF300R | C44: 1893 | D44: 1520 | E44: 1500 | F44: 995 | G44: 930 | H44: 700 | I44: 995
A45: TOURET 1 A CREER | B45: - | C45: 3000 | D45: 3000 | E45: 3000 | F45: 2740 | G45: 2400 | H45: 1790 | I45: 2740
A46: TOURET 2 A CREER | B46: - | C46: 3000 | D46: 2480 | E46: 2450 | F46: 1830 | G46: 1560 | H46: 1240 | I46: 1830
A47: TOURET 3 A CREER | B47: - | C47: 2180 | D47: 1590 | E47: 1570 | F47: 1250 | G47: 1020 | H47: 780 | I47: 1250
C52: DIMENSIONS TOURETS pour cable 12/20kV
C53: Joues | D53: Larg. Int. | E53: Fût | F53: Larg. Ext. | G53: Trou d'axe | H53: Tare | I53: Charge utile | J53: Rampe | K53: Larg. Ext. + collerettes
A55: Touret | C55: mm | D55: mm | E55: mm | F55: mm | H55: kg | I55: kg | K55: mm
A56: H | B56: HBM | C56: 2200 | D56: 960 | E56: 1200 | F56: 1112 | G56: 82 | H56: 435 | I56: 5000 | J56: NON
A57: I | B57: IBM | C57: 2600 | D57: 960 | E57: 1200 | F57: 1132 | G57: 82 | H57: 640 | I57: 6000 | J57: NON
A58: J | B58: JFM2 | C58: 3000 | D58: 920 | E58: 1400 | F58: 1160 | G58: 150 | H58: 920 | I58: 7000 | J58: 80
A59: HBL | B59: DOF220F | C59: 2200 | D59: 990 | E59: 980 | F59: 1150 | G59: 82 | H59: 450 | I59: 5000 | J59: NON
A60: IBM | B60: DOF260M | C60: 2600 | D60: 960 | E60: 1200 | F60: 1132 | G60: 82 | H60: 920 | I60: 6000 | J60: NON
A61: GBE | B61: DWF1900 | C61: 1900 | D61: 960 | E61: 960 | F61: 1120 | G61: 82 | H61: 378 | I61: 4000 | J61: NON
A62: HBE | B62: DWF2200 | C62: 2200 | D62: 960 | E62: 1200 | F62: 1120 | G62: 82 | H62: 520 | I62: 5000 | J62: NON
A63: HBW34 | B63: DYF224A | C63: 2240 | D63: 998 | E63: 1020 | F63: 1200 | G63: 82 | H63: 650 | I63: 5000 | J63: NON
A64: IBE | B64: DWF2600 | C64: 2600 | D64: 960 | E64: 1200 | F64: 1132 | G64: 82 | H64: 854 | I64: 6000 | J64: NON
A65: BOXY | B65: FER PROCESS | C65: 2600 | D65: 1460 | E65: 1350 | F65: 1600 | G65: 82 | H65: 920 | I65: 12000 | J65: NON
A66: JFM1 | B66: DOF300I | C66: 3000 | D66: 1500 | E66: 1600 | F66: 1800 | G66: 145 | H66: 850 | I66: 9000 | J66: 100
A67: JFM2 | B67: DOF300R | C67: 3000 | D67: 920 | E67: 1400 | F67: 1180 | G67: 145 | H67: 920 | I67: 7000 | J67: 80
A68: JFM3 | B68: DOF300J | C68: 3000 | D68: 1600 | E68: 1600 | F68: 1760 | G68: 145 | H68: 770 | I68: 9000 | J68: NON
A69: TOURET 1 A CREER | B69: - | C69: 4100 | D69: 1600 | E69: 1400 | F69: 1700 | G69: 150 | H69: NC | I69: 13000 | J69: NON | K69: 1850
A70: TOURET 2 A CREER | B70: - | C70: 3500 | D70: 1600 | E70: 1400 | F70: 1850 | G70: 150 | H70: NC | I70: 13000 | J70: NON | K70: 1850
A71: TOURET 3 A CREER | B71: - | C71: 3000 | D71: 1600 | E71: 1400 | F71: 1850 | G71: 85 | H71: NC | I71: 13000 | J71: NON
C75: CABLES EDR
C76: 18/30kV
A77: Touret | C77: 3 x 1 x 50 ALU | D77: 3 x 1 x 95 ALU | E77: 3 x 1 x 150 ALU | F77: 3 x 1 x 240 ALU | G77: 3 x 1 x 300 ALU | H77: 3 x 1 x 400 ALU | I77: 3 x 1 x 240 CU
B78: Code CA | C78: P26EDR8163 | D78: P26EDR8165 | E78: P26EDR8167 | F78: P26EDR8169 | G78: P26EDR8170 | H78: NON FAISABLE | I78: P26EDR8885
B79: Code SAP | C79: PAS DE DEMANDE POUR L'INSTANT | D79: NC | E79: NC | F79: NC | G79: NC | H79: NON FAISABLE | I79: PAS DE DEMANDE POUR L'INSTANT
B80: Touret
A81: H | B81: HBM | C81: 0 | D81: 225 | E81: 205 | F81: 0 | G81: 0 | H81: 0 | I81: 0
A82: I | B82: IBM | C82: 0 | D82: 365 | E82: 340 | F82: 0 | G82: 0 | H82: 0 | I82: 0
A83: J | B83: JFM2 | C83: 0 | D83: 585 | E83: 480 | F83: 445 | G83: 350 | H83: 0 | I83: 0
C87: CABLES STANDARDS - TORSADE
C88: 18/30kV
A89: Touret | C89: 3 x 1 x 50 ALU | D89: 3 x 1 x 95 ALU | E89: 3 x 1 x 150 ALU | F89: 3 x 1 x 240 ALU | G89: 3 x 1 x 300 ALU | H89: 3 x 1 x 400 ALU | I89: 3 x 1 x 240 CU
B90: Code CA | C90: PBG68163 | D90: PBG68165 | E90: PBG68167 | F90: PBG68169 | G90: PBG68170 | H90: PBG68171 | I90: PBG68769
B91: Code SAP | C91: NC | D91: 20034752 | E91: 20034753 | F91: 20035555 | G91: 20193956 | H91: NC | I91: 20034755
B92: Touret
A93: H | B93: HBM | C93: 330 | D93: 320 | E93: 310 | F93: 240 | G93: 205 | H93: 0 | I93: 220
A94: I | B94: IBM | C94: 590 | D94: 575 | E94: 500 | F94: 445 | G94: 340 | H94: 0 | I94: 445
A95: J | B95: JFM2 | C95: 835 | D95: 705 | E95: 690 | F95: 555 | G95: 435 | H95: 345 | I95: 555
C99: DIMENSIONS TOURETS pour cables 18/30kV
C100: Joues | D100: Larg. Int. | E100: Fût | F100: Larg. Ext. | G100: Trou d'axe | H100: Tare | I100: Charge utile | J100: Rampe | K100: Larg. Ext. + collerettes
A102: Touret | C102: mm | D102: mm | E102: mm | F102: mm | H102: kg | I102: kg | K102: mm
A103: H | B103: HBM | C103: 2200 | D103: 960 | E103: 1200 | F103: 1112 | G103: 82 | H103: 435 | I103: 5000 | J103: NON
A104: I | B104: IBM | C104: 2600 | D104: 960 | E104: 1200 | F104: 1132 | G104: 82 | H104: 640 | I104: 6000 | J104: NON
A105: J | B105: JFM2 | C105: 3000 | D105: 920 | E105: 1400 | F105: 1160 | G105: 150 | H105: 920 | I105: 7000 | J105: 80

Sheet lg_database_GC (hidden)
C1: CABLES EDR
C2: 12/20kV
A3: Touret | C3: 3 x 1 x 50 ALU | D3: 3 x 1 x 95 ALU | E3: 3 x 1 x 150 ALU | F3: 3 x 1 x 240 ALU | G3: 3 x 1 x 300 ALU | H3: 3 x 1 x 400 ALU | I3: 3 x 1 x 240 CU
B6: Touret
A7: I | C7: 750 | D7: 600 | E7: 600 | F7: 500 | G7: 400 | H7: 300 | I7: 400
A8: H | C8: 400 | D8: 300 | E8: 300 | F8: 275 | G8: 200 | H8: 150 | I8: 250
A9: J | C9: 1000 | D9: 875 | E9: 875 | F9: 650 | G9: 600 | H9: 425 | I9: 600
C13: CABLES STANDARDS - TORSADE
C14: 12/20kV
A15: Touret | C15: 3 x 1 x 50 ALU | D15: 3 x 1 x 95 ALU | E15: 3 x 1 x 150 ALU | F15: 3 x 1 x 240 ALU | G15: 3 x 1 x 300 ALU | H15: 3 x 1 x 400 ALU | I15: 3 x 1 x 240 CU
B18: Touret
A19: I | C19: 1100 | D19: 800 | E19: 800 | F19: 620 | G19: 525 | H19: 375 | I19: 620
A20: H | C20: 675 | D20: 530 | E20: 530 | F20: 390 | G20: 300 | H20: 250 | I20: 390
A21: J | C21: 1575 | D21: 1230 | E21: 1230 | F21: 890 | G21: 800 | H21: 600 | I21: 690
C26: DIMENSIONS TOURETS
C27: Joues | D27: Larg. Int. | E27: Fût | F27: Larg. Ext. | G27: Trou d'axe | H27: Tare | I27: Charge utile | J27: Rampe | K27: Larg. Ext. + collerettes
A29: Touret | B29: Touret | C29: mm | D29: mm | E29: mm | F29: mm | H29: kg | I29: kg | K29: mm
A30: H | B30: H | C30: 2200 | D30: 960 | E30: 1200 | F30: 1140 | G30: 82 | H30: 600 | I30: 5000 | J30: NON
A31: I | B31: I | C31: 2600 | D31: 960 | E31: 1200 | F31: 1140 | G31: 82 | H31: 800 | I31: 6000 | J31: NON
A32: J | B32: J | C32: 3000 | D32: 960 | E32: 1200 | F32: 1140 | G32: 82 | H32: 850 | I32: 6000 | J32: NON
C36: CABLES EDR
C37: 18/30kV
A38: Touret | C38: 3 x 1 x 50 ALU | D38: 3 x 1 x 95 ALU | E38: 3 x 1 x 150 ALU | F38: 3 x 1 x 240 ALU | G38: 3 x 1 x 300 ALU | H38: 3 x 1 x 400 ALU | I38: 3 x 1 x 240 CU
B41: Touret
A42: H | C42: 0 | D42: 250 | E42: 200 | F42: 175 | G42: 175 | H42: 125 | I42: 175
A43: I | C43: 0 | D43: 400 | E43: 375 | F43: 350 | G43: 275 | H43: 275 | I43: 350
A44: J | C44: 0 | D44: 650 | E44: 600 | F44: 550 | G44: 475 | H44: 400 | I44: 550
C48: CABLES STANDARDS - TORSADE
C49: 18/30kV
A50: Touret | C50: 3 x 1 x 50 ALU | D50: 3 x 1 x 95 ALU | E50: 3 x 1 x 150 ALU | F50: 3 x 1 x 240 ALU | G50: 3 x 1 x 300 ALU | H50: 3 x 1 x 400 ALU | I50: 3 x 1 x 240 CU
B53: Touret
A54: H | C54: 0 | D54: 400 | E54: 375 | F54: 275 | G54: 250 | H54: 200 | I54: 275
A55: I | C55: 0 | D55: 650 | E55: 600 | F55: 475 | G55: 375 | H55: 350 | I55: 475
A56: J | C56: 0 | D56: 1000 | E56: 875 | F56: 725 | G56: 600 | H56: 525 | I56: 725

Sheet diametre_cable (hidden)
A1: Cable disponible PRYSMIAN 12/20 kV
A2: Type | B2: Nature | C2: Nombre de cable | D2: Diamètre total torsade (m) | G2: Type | H2: Nature | I2: Nombre de cable | J2: Diamètre total torsade (m)
A3: EDR | B3: 3 x 1 x 50 ALU | C3: 3 | D3: 0.0725 | G3: Standard | H3: 3 x 1 x 50 ALU | I3: 3 | J3: 0.0597
A4: EDR | B4: 3 x 1 x 95 ALU | C4: 3 | D4: 0.0795 | G4: Standard | H4: 3 x 1 x 95 ALU | I4: 3 | J4: 0.0662
A5: EDR | B5: 3 x 1 x 150 ALU | C5: 3 | D5: 0.0811 | G5: Standard | H5: 3 x 1 x 150 ALU | I5: 3 | J5: 0.0683
A6: EDR | B6: 3 x 1 x 240 ALU | C6: 3 | D6: 0.0911 | G6: Standard | H6: 3 x 1 x 240 ALU | I6: 3 | J6: 0.0787
A7: EDR | B7: 3 x 1 x 240 CU | C7: 3 | D7: 0.0912 | G7: Standard | H7: 3 x 1 x 240 CU | I7: 3 | J7: 0.0787
A8: EDR | B8: 3 x 1 x 300 ALU | C8: 3 | D8: 0.09685 | G8: Standard | H8: 3 x 1 x 300 ALU | I8: 3 | J8: 0.08363
A9: EDR | B9: 3 x 1 x 400 ALU | C9: 3 | D9: 0.1097 | G9: Standard | H9: 3 x 1 x 400 ALU | I9: 3 | J9: 0.09463
A12: Cable disponible PRYSMIAN 18/30 kV
A13: Type | B13: Nature | C13: Nombre de cable | D13: Diamètre total torsade (m) | G13: Type | H13: Nature | I13: Nombre de cable | J13: Diamètre total torsade (m)
A14: EDR | B14: 3 x 1 x 50 ALU | C14: 3 | D14: 0.0847 | G14: Standard | H14: 3 x 1 x 50 ALU | I14: 3 | J14: 0.07138
A15: EDR | B15: 3 x 1 x 95 ALU | C15: 3 | D15: 0.088 | G15: Standard | H15: 3 x 1 x 95 ALU | I15: 3 | J15: 0.0739
A16: EDR | B16: 3 x 1 x 150 ALU | C16: 3 | D16: 0.0912 | G16: Standard | H16: 3 x 1 x 150 ALU | I16: 3 | J16: 0.0779
A17: EDR | B17: 3 x 1 x 240 ALU | C17: 3 | D17: 0.0989 | G17: Standard | H17: 3 x 1 x 240 ALU | I17: 3 | J17: 0.08551
A18: EDR | B18: 3 x 1 x 300 ALU | C18: 3 | D18: 0.1055 | G18: Standard | H18: 3 x 1 x 300 ALU | I18: 3 | J18: 0.0922
A19: EDR | B19: 3 x 1 x 400 ALU | C19: 3 | D19: 0.115 | G19: Standard | H19: 3 x 1 x 400 ALU | I19: 3 | J19: 0.102
A20: EDR | B20: 3 x 1 x 240 CU | C20: 3 | D20: 0.099 | G20: Standard | H20: 3 x 1 x 240 CU | I20: 3 | J20: 0.086
A23: Cable disponible GC 12/20 kV
A24: Type | B24: Nature | C24: Nombre de cable | D24: Diamètre total torsade (m) | G24: Type | H24: Nature | I24: Nombre de cable | J24: Diamètre total torsade (m)
A25: EDR | B25: 3 x 1 x 50 ALU | C25: 3 | D25: 0.07 | G25: Standard | H25: 3 x 1 x 50 ALU | I25: 3 | J25: 0.059
A26: EDR | B26: 3 x 1 x 95 ALU | C26: 3 | D26: 0.077 | G26: Standard | H26: 3 x 1 x 95 ALU | I26: 3 | J26: 0.066
A27: EDR | B27: 3 x 1 x 150 ALU | C27: 3 | D27: 0.078 | G27: Standard | H27: 3 x 1 x 150 ALU | I27: 3 | J27: 0.067
A28: EDR | B28: 3 x 1 x 240 ALU | C28: 3 | D28: 0.086 | G28: Standard | H28: 3 x 1 x 240 ALU | I28: 3 | J28: 0.075
A29: EDR | B29: 3 x 1 x 240 CU | C29: 3 | D29: 0.091 | G29: Standard | H29: 3 x 1 x 240 CU | I29: 3 | J29: 0.08
A30: EDR | B30: 3 x 1 x 300 ALU | C30: 3 | D30: 0.101 | G30: Standard | H30: 3 x 1 x 300 ALU | I30: 3 | J30: 0.09
A31: EDR | B31: 3 x 1 x 400 ALU | C31: 3 | D31: 0.087 | G31: Standard | H31: 3 x 1 x 400 ALU | I31: 3 | J31: 0.079
A34: Cable disponible GC 18/30 kV
A35: Type | B35: Nature | C35: Nombre de cable | D35: Diamètre total (cable ou torsade) (m) | G35: Type | H35: Nature | I35: Nombre de cable | J35: Diamètre total (cable ou torsade) (m)
A36: EDR | B36: 3 x 1 x 50 ALU | C36: 3 | D36: 0.08 | G36: Standard | H36: 3 x 1 x 50 ALU | I36: 3 | J36: 0.069
A37: EDR | B37: 3 x 1 x 95 ALU | C37: 3 | D37: 0.084 | G37: Standard | H37: 3 x 1 x 95 ALU | I37: 3 | J37: 0.073
A38: EDR | B38: 3 x 1 x 150 ALU | C38: 3 | D38: 0.087 | G38: Standard | H38: 3 x 1 x 150 ALU | I38: 3 | J38: 0.076
A39: EDR | B39: 3 x 1 x 240 ALU | C39: 3 | D39: 0.093 | G39: Standard | H39: 3 x 1 x 240 ALU | I39: 3 | J39: 0.082
A40: EDR | B40: 3 x 1 x 300 ALU | C40: 3 | D40: 0.098 | G40: Standard | H40: 3 x 1 x 300 ALU | I40: 3 | J40: 0.087
A41: EDR | B41: 3 x 1 x 400 ALU | C41: 3 | D41: 0.106 | G41: Standard | H41: 3 x 1 x 400 ALU | I41: 3 | J41: 0.095
A42: EDR | B42: 3 x 1 x 240 CU | C42: 3 | D42: 0.094 | G42: Standard | H42: 3 x 1 x 240 CU | I42: 3 | J42: 0.083
